[Event "Betsys MČR v online bleskovém šachu 2021"]
[Site "Chess.com"]
[Date "2021.04.17"]
[Round "8"]
[White "l_pavlasek"]
[Black "Nevimjakhrat"]
[Result "1-0"]
[WhiteElo "1668"]
[BlackElo "1448"]
[TimeControl "180+1"]
[EndTime "10:18:51 PDT"]
[Termination "Uživatel l_pavlasek zvítězil po vzdání soupeře"]

1. e4 {[%clk 0:03:00.9]} 1... c6 {[%clk 0:02:59.9]} 2. e5 {[%clk 0:02:55.4]}
2... d5 {[%clk 0:03:00.8]} 3. exd6 {[%clk 0:02:54.4]} 3... exd6 {[%clk
0:02:49.6]} 4. d4 {[%clk 0:02:53.9]} 4... d5 {[%clk 0:02:49.3]} 5. Nf3 {[%clk
0:02:53.5]} 5... Bf5 {[%clk 0:02:42.5]} 6. Bd3 {[%clk 0:02:52.4]} 6... Bxd3
{[%clk 0:02:42.3]} 7. Qxd3 {[%clk 0:02:52]} 7... Nf6 {[%clk 0:02:43.2]} 8. O-O
{[%clk 0:02:51.5]} 8... Nbd7 {[%clk 0:02:42.8]} 9. Ne5 {[%clk 0:02:46.5]} 9...
Nxe5 {[%clk 0:02:37.6]} 10. dxe5 {[%clk 0:02:46.1]} 10... Nd7 {[%clk 0:02:38.5]}
11. Re1 {[%clk 0:02:44.6]} 11... Be7 {[%clk 0:02:37.8]} 12. e6 {[%clk
0:02:39.6]} 12... fxe6 {[%clk 0:02:36.9]} 13. Rxe6 {[%clk 0:02:39]} 13... O-O
{[%clk 0:02:37.7]} 14. Bd2 {[%clk 0:02:28]} 14... Qb6 {[%clk 0:02:30.4]} 15. Qe3
{[%clk 0:01:59.9]} 15... Qxb2 {[%clk 0:02:08.9]} 16. Bc3 {[%clk 0:01:53.9]}
16... Bc5 {[%clk 0:01:30.7]} 17. Bxb2 {[%clk 0:01:39.4]} 17... Bxe3 {[%clk
0:01:23.1]} 18. fxe3 {[%clk 0:01:39.2]} 18... Nc5 {[%clk 0:01:24]} 19. Re7
{[%clk 0:01:32.4]} 19... Rf7 {[%clk 0:01:11.6]} 20. Rxf7 {[%clk 0:01:29]} 20...
Kxf7 {[%clk 0:01:12.5]} 21. Nc3 {[%clk 0:01:25.3]} 21... Rf8 {[%clk 0:01:08.8]}
22. Ba3 {[%clk 0:01:17.3]} 22... Kg8 {[%clk 0:01:09.7]} 23. Bxc5 {[%clk
0:01:15.6]} 1-0

[Event "Betsys MČR v online bleskovém šachu 2021"]
[Site "Chess.com"]
[Date "2021.04.17"]
[Round "8"]
[White "svTomas"]
[Black "Sandokanom"]
[Result "0-1"]
[WhiteElo "1434"]
[BlackElo "1757"]
[TimeControl "180+1"]
[EndTime "10:18:53 PDT"]
[Termination "Uživatel Sandokanom zvítězil po vzdání soupeře"]

1. e4 {[%clk 0:03:00.9]} 1... c5 {[%clk 0:02:59.6]} 2. Nf3 {[%clk 0:03:00.5]}
2... e6 {[%clk 0:02:59.8]} 3. d4 {[%clk 0:03:00.7]} 3... cxd4 {[%clk 0:02:59.6]}
4. Nxd4 {[%clk 0:03:00.5]} 4... Nf6 {[%clk 0:03:00.3]} 5. Nc3 {[%clk 0:03:00.1]}
5... Bb4 {[%clk 0:02:59.3]} 6. f3 {[%clk 0:02:57.1]} 6... d5 {[%clk 0:02:58.2]}
7. Bb5+ {[%clk 0:02:32.3]} 7... Bd7 {[%clk 0:02:54.4]} 8. O-O {[%clk 0:02:25.9]}
8... Bxc3 {[%clk 0:02:48.3]} 9. bxc3 {[%clk 0:02:25.6]} 9... dxe4 {[%clk
0:02:47.8]} 10. fxe4 {[%clk 0:02:15.6]} 10... Nxe4 {[%clk 0:02:47.3]} 11. Nxe6
{[%clk 0:02:10]} 11... Qb6+ {[%clk 0:02:32.3]} 12. Nd4 {[%clk 0:02:07.9]} 12...
Bxb5 {[%clk 0:02:21.2]} 13. Re1 {[%clk 0:01:49.3]} 13... Bc6 {[%clk 0:02:01]}
14. Be3 {[%clk 0:01:43.7]} 14... O-O {[%clk 0:01:52.2]} 15. Ne6 {[%clk
0:01:34.4]} 15... Qa5 {[%clk 0:01:18.8]} 16. Nxf8 {[%clk 0:01:18.3]} 16... Kxf8
{[%clk 0:01:05.3]} 17. Bc5+ {[%clk 0:01:11]} 17... Qxc5+ {[%clk 0:00:58]} 18.
Kh1 {[%clk 0:01:07.9]} 0-1

[Event "Betsys MČR v online bleskovém šachu 2021"]
[Site "Chess.com"]
[Date "2021.04.17"]
[Round "8"]
[White "Z_u_z_i"]
[Black "Rognort"]
[Result "0-1"]
[WhiteElo "1539"]
[BlackElo "1791"]
[TimeControl "180+1"]
[EndTime "10:18:55 PDT"]
[Termination "Uživatel Rognort zvítězil matem"]

1. e4 {[%clk 0:03:00.9]} 1... d5 {[%clk 0:02:58.9]} 2. exd5 {[%clk 0:03:00.2]}
2... Qxd5 {[%clk 0:02:59.8]} 3. Nc3 {[%clk 0:03:00.3]} 3... Qa5 {[%clk
0:02:59.8]} 4. d4 {[%clk 0:03:00.1]} 4... c6 {[%clk 0:03:00.2]} 5. Nf3 {[%clk
0:02:59.7]} 5... Bf5 {[%clk 0:03:00.6]} 6. Bc4 {[%clk 0:02:58.7]} 6... e6 {[%clk
0:03:00.7]} 7. O-O {[%clk 0:02:58.5]} 7... Qc7 {[%clk 0:03:01.3]} 8. Be3 {[%clk
0:02:53.4]} 8... Bd6 {[%clk 0:03:01.2]} 9. h3 {[%clk 0:02:52.1]} 9... Nf6 {[%clk
0:02:59.7]} 10. Qe2 {[%clk 0:02:42.5]} 10... Nbd7 {[%clk 0:02:59.2]} 11. Rad1
{[%clk 0:02:40.9]} 11... O-O-O {[%clk 0:02:56.4]} 12. a3 {[%clk 0:02:38.5]}
12... h6 {[%clk 0:02:56.5]} 13. b4 {[%clk 0:02:37.8]} 13... g5 {[%clk
0:02:53.9]} 14. b5 {[%clk 0:02:14.2]} 14... g4 {[%clk 0:02:52.4]} 15. hxg4
{[%clk 0:02:13]} 15... Bxg4 {[%clk 0:02:46.5]} 16. bxc6 {[%clk 0:02:10]} 16...
Qxc6 {[%clk 0:02:44.1]} 17. Nb5 {[%clk 0:01:57.1]} 17... Bb8 {[%clk 0:02:34.5]}
18. Bd3 {[%clk 0:00:46.4]} 18... Bxf3 {[%clk 0:02:30.6]} 19. Qxf3 {[%clk
0:00:44]} 19... Qxf3 {[%clk 0:02:30.9]} 20. gxf3 {[%clk 0:00:43.8]} 20... Nd5
{[%clk 0:02:25.1]} 21. c4 {[%clk 0:00:30.5]} 21... Rdg8+ {[%clk 0:02:15.9]} 22.
Kh1 {[%clk 0:00:26.5]} 22... Nxe3 {[%clk 0:02:13.4]} 23. fxe3 {[%clk 0:00:25.6]}
23... Rg3 {[%clk 0:02:12.6]} 24. e4 {[%clk 0:00:20.2]} 24... Rh3+ {[%clk
0:02:08.8]} 25. Kg2 {[%clk 0:00:19.4]} 25... Rh2+ {[%clk 0:02:09]} 26. Kg1
{[%clk 0:00:12.3]} 26... Rg8# {[%clk 0:02:09.6]} 0-1

[Event "Betsys MČR v online bleskovém šachu 2021"]
[Site "Chess.com"]
[Date "2021.04.17"]
[Round "8"]
[White "NikolaKusova"]
[Black "OndrejBorkovec"]
[Result "0-1"]
[WhiteElo "1065"]
[BlackElo "1509"]
[TimeControl "180+1"]
[EndTime "10:18:56 PDT"]
[Termination "Uživatel OndrejBorkovec zvítězil na čas"]

1. e4 {[%clk 0:03:00.9]} 1... e6 {[%clk 0:03:00.8]} 2. d4 {[%clk 0:02:59.7]}
2... d5 {[%clk 0:03:01.1]} 3. e5 {[%clk 0:02:57.5]} 3... c5 {[%clk 0:03:01.1]}
4. c3 {[%clk 0:02:55.1]} 4... Nc6 {[%clk 0:03:00.9]} 5. Nf3 {[%clk 0:02:54]}
5... Qb6 {[%clk 0:03:00.5]} 6. a3 {[%clk 0:02:53.2]} 6... Nge7 {[%clk 0:03:00]}
7. b4 {[%clk 0:02:52.3]} 7... c4 {[%clk 0:02:59.7]} 8. Bg5 {[%clk 0:02:44.7]}
8... Nf5 {[%clk 0:02:57.6]} 9. Nbd2 {[%clk 0:02:07.7]} 9... Be7 {[%clk
0:02:52.3]} 10. Bxe7 {[%clk 0:02:05.4]} 10... Nfxe7 {[%clk 0:02:53.2]} 11. Ng5
{[%clk 0:01:57.7]} 11... O-O {[%clk 0:02:50.9]} 12. Qh5 {[%clk 0:01:52.3]} 12...
h6 {[%clk 0:02:50.7]} 13. Ngf3 {[%clk 0:01:45.8]} 13... Nf5 {[%clk 0:02:44.2]}
14. Be2 {[%clk 0:01:39.5]} 14... Nce7 {[%clk 0:02:43.4]} 15. O-O {[%clk
0:01:35.7]} 15... Ng6 {[%clk 0:02:42.1]} 16. a4 {[%clk 0:01:31.8]} 16... Nf4
{[%clk 0:02:41]} 17. a5 {[%clk 0:01:17.8]} 17... Qd8 {[%clk 0:02:37.2]} 18. Rfe1
{[%clk 0:00:51]} 18... Nxh5 {[%clk 0:02:35.8]} 19. g4 {[%clk 0:00:49]} 19... Nf4
{[%clk 0:02:32.2]} 20. gxf5 {[%clk 0:00:47]} 20... exf5 {[%clk 0:02:32.1]} 21.
Kh1 {[%clk 0:00:35.3]} 21... Be6 {[%clk 0:02:29.9]} 22. Rg1 {[%clk 0:00:31.8]}
22... Kh7 {[%clk 0:02:29.1]} 23. Nh4 {[%clk 0:00:18.4]} 23... Nxe2 {[%clk
0:02:27.3]} 24. Rge1 {[%clk 0:00:13.9]} 24... Nxc3 {[%clk 0:02:27]} 25. Rac1
{[%clk 0:00:10.9]} 25... Ne4 {[%clk 0:02:26.3]} 26. Nxe4 {[%clk 0:00:08.9]}
26... fxe4 {[%clk 0:02:27.2]} 27. f3 {[%clk 0:00:05.2]} 27... Qxh4 {[%clk
0:02:26.5]} 28. fxe4 {[%clk 0:00:02.6]} 28... dxe4 {[%clk 0:02:26.5]} 0-1

[Event "Betsys MČR v online bleskovém šachu 2021"]
[Site "Chess.com"]
[Date "2021.04.17"]
[Round "8"]
[White "dino5517"]
[Black "Hollow_Head"]
[Result "1-0"]
[WhiteElo "1391"]
[BlackElo "1069"]
[TimeControl "180+1"]
[EndTime "10:19:00 PDT"]
[Termination "Uživatel dino5517 zvítězil matem"]

1. e4 {[%clk 0:03:00.9]} 1... e5 {[%clk 0:02:54.8]} 2. Nf3 {[%clk 0:02:57.7]}
2... Nc6 {[%clk 0:02:55.2]} 3. Bc4 {[%clk 0:02:53]} 3... Nd4 {[%clk 0:02:55.1]}
4. Nxd4 {[%clk 0:02:48.5]} 4... exd4 {[%clk 0:02:56]} 5. c3 {[%clk 0:02:44.2]}
5... dxc3 {[%clk 0:02:55.8]} 6. Nxc3 {[%clk 0:02:43.1]} 6... Nf6 {[%clk
0:02:55]} 7. Qf3 {[%clk 0:02:38.6]} 7... Bb4 {[%clk 0:02:53.6]} 8. e5 {[%clk
0:02:37]} 8... Bxc3 {[%clk 0:02:49.8]} 9. bxc3 {[%clk 0:02:34.8]} 9... O-O
{[%clk 0:02:48.6]} 10. exf6 {[%clk 0:02:32.4]} 10... g6 {[%clk 0:02:48.9]} 11.
O-O {[%clk 0:02:27.6]} 11... c6 {[%clk 0:02:43.3]} 12. Qh3 {[%clk 0:02:24.2]}
12... h5 {[%clk 0:02:39.4]} 13. Bb3 {[%clk 0:02:14.2]} 13... d5 {[%clk
0:02:38.5]} 14. Qe3 {[%clk 0:02:10.4]} 14... Re8 {[%clk 0:02:37.5]} 15. Qh6
{[%clk 0:02:04]} 15... Qxf6 {[%clk 0:02:37.4]} 16. Rb1 {[%clk 0:01:55.4]} 16...
Qe5 {[%clk 0:02:36.7]} 17. Bb2 {[%clk 0:01:48.2]} 17... Bf5 {[%clk 0:02:32.3]}
18. c4 {[%clk 0:01:45.1]} 18... Bxb1 {[%clk 0:02:08.6]} 19. Bxe5 {[%clk
0:01:42.8]} 19... Rxe5 {[%clk 0:02:09.5]} 20. Rxb1 {[%clk 0:01:37.8]} 20... Rae8
{[%clk 0:02:09.4]} 21. h3 {[%clk 0:01:35.7]} 21... Re2 {[%clk 0:01:58.5]} 22.
cxd5 {[%clk 0:01:30.7]} 22... Rxd2 {[%clk 0:01:55.5]} 23. dxc6 {[%clk
0:01:23.7]} 23... bxc6 {[%clk 0:01:56.4]} 24. Qxd2 {[%clk 0:01:16.7]} 24... Rf8
{[%clk 0:01:55.4]} 25. Qd7 {[%clk 0:01:11.7]} 25... a5 {[%clk 0:01:52.6]} 26. a4
{[%clk 0:01:10.3]} 26... c5 {[%clk 0:01:51.7]} 27. g4 {[%clk 0:01:07.4]} 27...
h4 {[%clk 0:01:51.1]} 28. Rd1 {[%clk 0:00:59.9]} 28... g5 {[%clk 0:01:48.8]} 29.
Rd6 {[%clk 0:00:57.9]} 29... Kg7 {[%clk 0:01:46.4]} 30. Qf5 {[%clk 0:00:55.7]}
30... f6 {[%clk 0:01:44.3]} 31. Rd7+ {[%clk 0:00:53]} 31... Rf7 {[%clk
0:01:39.9]} 32. Rxf7+ {[%clk 0:00:51.5]} 32... Kh6 {[%clk 0:01:40.2]} 33. Qxf6#
{[%clk 0:00:50.6]} 1-0

[Event "Betsys MČR v online bleskovém šachu 2021"]
[Site "Chess.com"]
[Date "2021.04.17"]
[Round "8"]
[White "Hroch_Hippo"]
[Black "MatejKopecky13"]
[Result "0-1"]
[WhiteElo "1097"]
[BlackElo "1514"]
[TimeControl "180+1"]
[EndTime "10:19:02 PDT"]
[Termination "Uživatel MatejKopecky13 zvítězil matem"]

1. e4 {[%clk 0:03:00.6]} 1... c6 {[%clk 0:02:57.1]} 2. Nc3 {[%clk 0:02:56.6]}
2... d5 {[%clk 0:02:56.2]} 3. exd5 {[%clk 0:02:56.6]} 3... cxd5 {[%clk 0:02:55]}
4. Qf3 {[%clk 0:02:56.6]} 4... Nf6 {[%clk 0:02:53.4]} 5. Bb5+ {[%clk 0:02:55]}
5... Nc6 {[%clk 0:02:50]} 6. Bxc6+ {[%clk 0:02:55.2]} 6... bxc6 {[%clk 0:02:50]}
7. d4 {[%clk 0:02:52.5]} 7... Bg4 {[%clk 0:02:48.6]} 8. Qf4 {[%clk 0:02:47.4]}
8... e6 {[%clk 0:02:46.4]} 9. f3 {[%clk 0:02:41.8]} 9... Bd6 {[%clk 0:02:43.7]}
10. Qg5 {[%clk 0:02:39.2]} 10... Bh5 {[%clk 0:02:34.3]} 11. Bf4 {[%clk
0:02:36.7]} 11... h6 {[%clk 0:02:28.5]} 12. Qxg7 {[%clk 0:02:21]} 12... Rg8
{[%clk 0:02:26.4]} 13. Qxh6 {[%clk 0:02:20.1]} 13... Bxf4 {[%clk 0:02:25.4]} 14.
Qxf4 {[%clk 0:02:19.7]} 14... Rxg2 {[%clk 0:02:23.8]} 15. Nh3 {[%clk 0:02:14.1]}
15... Rxc2 {[%clk 0:02:13.7]} 16. Rb1 {[%clk 0:02:08.2]} 16... Rb8 {[%clk
0:02:12.2]} 17. Na4 {[%clk 0:02:06.4]} 17... Rb4 {[%clk 0:02:08.4]} 18. Kd1
{[%clk 0:01:59.8]} 18... Bg6 {[%clk 0:02:00.3]} 19. Qh6 {[%clk 0:01:45.7]} 19...
Rxa4 {[%clk 0:01:54]} 20. Qh8+ {[%clk 0:01:43.7]} 20... Ke7 {[%clk 0:01:52.3]}
21. Qxd8+ {[%clk 0:01:40.3]} 21... Kxd8 {[%clk 0:01:53.2]} 22. b3 {[%clk
0:01:37.5]} 22... Rxd4+ {[%clk 0:01:53]} 23. Ke1 {[%clk 0:01:35.9]} 23... Rdd2
{[%clk 0:01:50.1]} 24. Rd1 {[%clk 0:01:28.8]} 24... Re2+ {[%clk 0:01:48.7]} 25.
Kf1 {[%clk 0:01:29]} 25... Bf5 {[%clk 0:01:48.9]} 26. Ng1 {[%clk 0:01:20.2]}
26... Rf2+ {[%clk 0:01:46.1]} 27. Ke1 {[%clk 0:01:20.4]} 27... Nh5 {[%clk
0:01:43.2]} 28. Ra1 {[%clk 0:01:04.4]} 28... Nf4 {[%clk 0:01:41.5]} 29. Kd1
{[%clk 0:01:02.9]} 29... Rfd2+ {[%clk 0:01:40.4]} 30. Ke1 {[%clk 0:01:01]} 30...
Ng2+ {[%clk 0:01:39.8]} 31. Kf1 {[%clk 0:00:59.8]} 31... Bd3+ {[%clk 0:01:40.4]}
32. Ne2 {[%clk 0:00:58.6]} 32... Rxe2 {[%clk 0:01:37.5]} 33. Kg1 {[%clk
0:00:58.1]} 33... Nf4 {[%clk 0:01:34.5]} 34. h4 {[%clk 0:00:57.6]} 34... Rg2#
{[%clk 0:01:34.3]} 0-1

[Event "Betsys MČR v online bleskovém šachu 2021"]
[Site "Chess.com"]
[Date "2021.04.17"]
[Round "8"]
[White "Michelangelo111"]
[Black "Jeff_CZE"]
[Result "1-0"]
[WhiteElo "2125"]
[BlackElo "1849"]
[TimeControl "180+1"]
[EndTime "10:19:05 PDT"]
[Termination "Uživatel Michelangelo111 zvítězil po vzdání soupeře"]

1. Nf3 {[%clk 0:03:00.9]} 1... e6 {[%clk 0:02:57.4]} 2. g3 {[%clk 0:03:00.8]}
2... d5 {[%clk 0:02:58]} 3. Bg2 {[%clk 0:03:01.7]} 3... Nf6 {[%clk 0:02:58.3]}
4. O-O {[%clk 0:03:01.4]} 4... Be7 {[%clk 0:02:58.7]} 5. d4 {[%clk 0:03:01.4]}
5... O-O {[%clk 0:02:58.8]} 6. c4 {[%clk 0:03:01.4]} 6... dxc4 {[%clk
0:02:59.7]} 7. Qc2 {[%clk 0:03:01.4]} 7... Bd7 {[%clk 0:02:49.8]} 8. Qxc4 {[%clk
0:02:44.4]} 8... Bc6 {[%clk 0:02:49.1]} 9. Nc3 {[%clk 0:02:41.7]} 9... a6 {[%clk
0:02:38.3]} 10. Ne5 {[%clk 0:02:27.6]} 10... Bxg2 {[%clk 0:02:15.2]} 11. Kxg2
{[%clk 0:02:28.5]} 11... b5 {[%clk 0:02:12.4]} 12. Qd3 {[%clk 0:02:26]} 12... c5
{[%clk 0:02:05]} 13. dxc5 {[%clk 0:02:13]} 13... Bxc5 {[%clk 0:01:59.4]} 14. Bf4
{[%clk 0:02:11]} 14... Qb6 {[%clk 0:01:39.5]} 15. Rad1 {[%clk 0:02:02.1]} 15...
Nc6 {[%clk 0:01:36.7]} 16. Nxc6 {[%clk 0:01:55.1]} 16... Qxc6+ {[%clk
0:01:34.8]} 17. Qf3 {[%clk 0:01:56]} 17... Qxf3+ {[%clk 0:01:31.4]} 18. Kxf3
{[%clk 0:01:56.9]} 18... Rad8 {[%clk 0:01:30.2]} 19. Be5 {[%clk 0:01:41.3]}
19... Nd7 {[%clk 0:01:13.6]} 20. Bc7 {[%clk 0:01:33.2]} 1-0

[Event "Betsys MČR v online bleskovém šachu 2021"]
[Site "Chess.com"]
[Date "2021.04.17"]
[Round "8"]
[White "DominikS3"]
[Black "pohoda1966"]
[Result "0-1"]
[WhiteElo "1341"]
[BlackElo "1731"]
[TimeControl "180+1"]
[EndTime "10:19:07 PDT"]
[Termination "Uživatel pohoda1966 zvítězil po vzdání soupeře"]

1. d4 {[%clk 0:03:00.9]} 1... d5 {[%clk 0:02:59]} 2. c4 {[%clk 0:03:00.2]} 2...
c6 {[%clk 0:02:58.5]} 3. Nc3 {[%clk 0:02:59.2]} 3... Nf6 {[%clk 0:02:57.6]} 4.
Nf3 {[%clk 0:02:58.4]} 4... e6 {[%clk 0:02:57.2]} 5. Bg5 {[%clk 0:02:57.6]} 5...
a6 {[%clk 0:02:56]} 6. e3 {[%clk 0:02:56.2]} 6... Nbd7 {[%clk 0:02:49]} 7. cxd5
{[%clk 0:02:55.1]} 7... exd5 {[%clk 0:02:44.8]} 8. Bd3 {[%clk 0:02:53.1]} 8...
Be7 {[%clk 0:02:44.2]} 9. O-O {[%clk 0:02:51.3]} 9... h6 {[%clk 0:02:44.3]} 10.
Bh4 {[%clk 0:02:50.1]} 10... O-O {[%clk 0:02:35.4]} 11. Rc1 {[%clk 0:02:46.3]}
11... Re8 {[%clk 0:02:25.7]} 12. a3 {[%clk 0:02:42.2]} 12... Nh7 {[%clk
0:02:12.1]} 13. Bxe7 {[%clk 0:02:39.3]} 13... Qxe7 {[%clk 0:02:07.1]} 14. b4
{[%clk 0:02:37.1]} 14... Ng5 {[%clk 0:02:03.1]} 15. Nxg5 {[%clk 0:02:34.4]}
15... Qxg5 {[%clk 0:02:01.9]} 16. a4 {[%clk 0:02:30.5]} 16... Nf6 {[%clk
0:01:56.2]} 17. b5 {[%clk 0:02:27.4]} 17... axb5 {[%clk 0:01:55.3]} 18. axb5
{[%clk 0:02:26]} 18... Bd7 {[%clk 0:01:51.3]} 19. bxc6 {[%clk 0:02:24.8]} 19...
bxc6 {[%clk 0:01:48.3]} 20. Na4 {[%clk 0:02:13.4]} 20... Bh3 {[%clk 0:01:38.7]}
21. g3 {[%clk 0:02:07.6]} 21... Bxf1 {[%clk 0:01:36.9]} 22. Bxf1 {[%clk
0:02:05.8]} 22... Ng4 {[%clk 0:01:19.7]} 23. h4 {[%clk 0:01:49.6]} 23... Qg6
{[%clk 0:01:09.5]} 24. Nc5 {[%clk 0:01:35.7]} 24... Nxe3 {[%clk 0:01:08.8]} 25.
fxe3 {[%clk 0:01:34]} 25... Qxg3+ {[%clk 0:01:07.7]} 26. Bg2 {[%clk 0:01:31.4]}
26... Rxe3 {[%clk 0:01:03.6]} 27. Nd7 {[%clk 0:01:21.3]} 27... Ra2 {[%clk
0:01:02]} 28. Rc2 {[%clk 0:01:19.2]} 28... Re1+ {[%clk 0:01:01.2]} 0-1

[Event "Betsys MČR v online bleskovém šachu 2021"]
[Site "Chess.com"]
[Date "2021.04.17"]
[Round "8"]
[White "8_olda_8"]
[Black "ZdenekRomanek"]
[Result "1-0"]
[WhiteElo "1799"]
[BlackElo "1589"]
[TimeControl "180+1"]
[EndTime "10:19:08 PDT"]
[Termination "Uživatel 8_olda_8 zvítězil po vzdání soupeře"]

1. d4 {[%clk 0:03:00.9]} 1... e6 {[%clk 0:02:51.1]} 2. c4 {[%clk 0:03:00.5]}
2... d5 {[%clk 0:02:48.4]} 3. Nc3 {[%clk 0:02:58]} 3... Nf6 {[%clk 0:02:47.5]}
4. Nf3 {[%clk 0:02:53.5]} 4... Bb4 {[%clk 0:02:45.5]} 5. Qc2 {[%clk 0:02:52.8]}
5... O-O {[%clk 0:02:44.2]} 6. a3 {[%clk 0:02:52.7]} 6... Bxc3+ {[%clk 0:02:37]}
7. Qxc3 {[%clk 0:02:53.6]} 7... Ne4 {[%clk 0:02:30.3]} 8. Qc2 {[%clk 0:02:53.8]}
8... Nc6 {[%clk 0:02:10.5]} 9. g3 {[%clk 0:02:46.2]} 9... f5 {[%clk 0:02:06.6]}
10. Bg2 {[%clk 0:02:45.6]} 10... Bd7 {[%clk 0:02:03.8]} 11. O-O {[%clk
0:02:43.9]} 11... Qf6 {[%clk 0:01:57.7]} 12. Rd1 {[%clk 0:02:27.9]} 12... Rad8
{[%clk 0:01:54]} 13. Bf4 {[%clk 0:02:27.7]} 13... Rc8 {[%clk 0:01:51]} 14. b4
{[%clk 0:02:16.6]} 14... g5 {[%clk 0:01:49.2]} 15. Be5 {[%clk 0:02:10.4]} 15...
Nxe5 {[%clk 0:01:47.9]} 16. Nxe5 {[%clk 0:02:11.3]} 16... Be8 {[%clk 0:01:42.7]}
17. f3 {[%clk 0:02:02.5]} 17... Nd6 {[%clk 0:01:40.6]} 18. e4 {[%clk 0:01:48.2]}
18... dxc4 {[%clk 0:01:33.7]} 19. Nxc4 {[%clk 0:01:15.6]} 19... Nxc4 {[%clk
0:01:30.8]} 20. Qxc4 {[%clk 0:01:16.5]} 20... fxe4 {[%clk 0:01:29]} 21. fxe4
{[%clk 0:01:17.2]} 21... Qf2+ {[%clk 0:01:27.4]} 22. Kh1 {[%clk 0:01:17.4]}
22... Rf6 {[%clk 0:01:04.9]} 23. Rf1 {[%clk 0:01:16.4]} 1-0

[Event "Betsys MČR v online bleskovém šachu 2021"]
[Site "Chess.com"]
[Date "2021.04.17"]
[Round "8"]
[White "hvanacek"]
[Black "Figo5144"]
[Result "1-0"]
[WhiteElo "950"]
[BlackElo "575"]
[TimeControl "180+1"]
[EndTime "10:19:08 PDT"]
[Termination "Uživatel hvanacek zvítězil matem"]

1. e4 {[%clk 0:03:00.9]} 1... e5 {[%clk 0:02:59.7]} 2. f4 {[%clk 0:03:00.3]}
2... Nc6 {[%clk 0:02:54.8]} 3. Nc3 {[%clk 0:02:56.4]} 3... a6 {[%clk 0:02:53.3]}
4. d3 {[%clk 0:02:50.6]} 4... Nf6 {[%clk 0:02:52.6]} 5. f5 {[%clk 0:02:48.7]}
5... h6 {[%clk 0:02:51.4]} 6. Nf3 {[%clk 0:02:45.5]} 6... Bc5 {[%clk 0:02:48.2]}
7. Qe2 {[%clk 0:02:41.2]} 7... d6 {[%clk 0:02:39.7]} 8. Be3 {[%clk 0:02:38]}
8... Bb4 {[%clk 0:02:33.8]} 9. O-O-O {[%clk 0:02:33.5]} 9... b6 {[%clk
0:02:18.5]} 10. Bd2 {[%clk 0:02:29.8]} 10... Bb7 {[%clk 0:02:16.2]} 11. g3
{[%clk 0:02:27]} 11... Nd4 {[%clk 0:02:11.3]} 12. Nxd4 {[%clk 0:02:24.9]} 12...
exd4 {[%clk 0:02:11]} 13. Nd5 {[%clk 0:02:20.9]} 13... O-O {[%clk 0:01:59.3]}
14. Bxb4 {[%clk 0:02:14.4]} 14... a5 {[%clk 0:01:56.6]} 15. Bd2 {[%clk
0:02:11.3]} 15... Re8 {[%clk 0:01:51.1]} 16. Nxf6+ {[%clk 0:02:09.7]} 16... gxf6
{[%clk 0:01:48.8]} 17. Qg4+ {[%clk 0:02:08.1]} 17... Kh7 {[%clk 0:01:42.2]} 18.
Qh5 {[%clk 0:02:01.8]} 18... Rf8 {[%clk 0:01:35.9]} 19. Qxh6+ {[%clk 0:02:01]}
19... Kg8 {[%clk 0:01:30.6]} 20. g4 {[%clk 0:01:39.6]} 20... d5 {[%clk
0:00:46.7]} 21. g5 {[%clk 0:01:37.9]} 21... dxe4 {[%clk 0:00:43.2]} 22. gxf6
{[%clk 0:01:35.4]} 22... exd3 {[%clk 0:00:39.4]} 23. Rg1+ {[%clk 0:01:34.2]}
23... Bg2 {[%clk 0:00:27.1]} 24. Rxg2# {[%clk 0:01:33.1]} 1-0

[Event "Betsys MČR v online bleskovém šachu 2021"]
[Site "Chess.com"]
[Date "2021.04.17"]
[Round "8"]
[White "marecek1754"]
[Black "MichalTrhal"]
[Result "1-0"]
[WhiteElo "2175"]
[BlackElo "1924"]
[TimeControl "180+1"]
[EndTime "10:19:15 PDT"]
[Termination "Uživatel marecek1754 zvítězil po vzdání soupeře"]

1. e4 {[%clk 0:03:00.9]} 1... d6 {[%clk 0:02:58.6]} 2. d4 {[%clk 0:02:52.6]}
2... Nf6 {[%clk 0:02:57.7]} 3. Nc3 {[%clk 0:02:49.5]} 3... g6 {[%clk 0:02:57.4]}
4. f4 {[%clk 0:02:49.3]} 4... Bg7 {[%clk 0:02:57.3]} 5. Nf3 {[%clk 0:02:49.7]}
5... O-O {[%clk 0:02:56.7]} 6. Bd3 {[%clk 0:02:49.8]} 6... c5 {[%clk 0:02:56.1]}
7. Be3 {[%clk 0:02:49.1]} 7... cxd4 {[%clk 0:02:55.5]} 8. Nxd4 {[%clk
0:02:47.3]} 8... Nc6 {[%clk 0:02:54.3]} 9. Nxc6 {[%clk 0:02:44.4]} 9... bxc6
{[%clk 0:02:53.9]} 10. h3 {[%clk 0:02:44.8]} 10... Rb8 {[%clk 0:02:53]} 11. Rb1
{[%clk 0:02:40.9]} 11... Qa5 {[%clk 0:02:49.5]} 12. O-O {[%clk 0:02:40.1]} 12...
Nd7 {[%clk 0:02:35.7]} 13. f5 {[%clk 0:02:26.5]} 13... Ne5 {[%clk 0:02:34.7]}
14. Be2 {[%clk 0:02:13.9]} 14... a6 {[%clk 0:02:14.1]} 15. Kh1 {[%clk
0:02:07.1]} 15... Qb4 {[%clk 0:02:13.9]} 16. a3 {[%clk 0:02:00.1]} 16... Qa5
{[%clk 0:02:07.2]} 17. Bg5 {[%clk 0:01:54.2]} 17... Re8 {[%clk 0:02:05.9]} 18.
f6 {[%clk 0:01:45.2]} 18... exf6 {[%clk 0:02:04.1]} 19. Bxf6 {[%clk 0:01:44.9]}
19... Bf8 {[%clk 0:01:49.1]} 20. Qd4 {[%clk 0:01:26.1]} 20... Be6 {[%clk
0:01:45]} 21. Nd1 {[%clk 0:01:07.9]} 21... Qc5 {[%clk 0:01:31.5]} 22. Qxc5
{[%clk 0:01:06.3]} 22... dxc5 {[%clk 0:01:31.6]} 23. Bxe5 {[%clk 0:01:06.5]}
23... Rbd8 {[%clk 0:01:24.5]} 24. Bf6 {[%clk 0:01:05.2]} 24... Rd2 {[%clk
0:01:23.6]} 25. Nc3 {[%clk 0:01:01.4]} 25... Rxc2 {[%clk 0:01:20.7]} 26. Rfc1
{[%clk 0:00:59.1]} 26... Rxc1+ {[%clk 0:01:14.8]} 27. Rxc1 {[%clk 0:00:59.1]}
27... c4 {[%clk 0:01:14.9]} 28. Rd1 {[%clk 0:00:58]} 1-0